bitfinex-derivatives/quotes_BTCF0:USTF0_20230901
["timestamp","ask_amount","ask_price","bid_price","bid_amount"]
[1693551488305,0.54140983,25994.0,25993.0,0.5347769]
[1693551488604,0.5960989,25994.0,25993.0,0.5347769]
[1693551488798,0.54140983,25994.0,25993.0,0.5347769]
[1693551490807,0.5960989,25994.0,25993.0,0.5347769]
[1693551491108,0.54140983,25994.0,25993.0,0.5347769]
[1693551493910,0.5960989,25994.0,25993.0,0.5347769]
[1693551494109,0.54140983,25994.0,25993.0,0.5347769]
[1693551494608,0.54140983,25994.0,25993.0,0.59132528]
[1693551494809,0.48486219,25994.0,25993.0,0.59132528]
[1693551495311,0.53955126,25994.0,25993.0,0.59132528]
[1693551495704,0.48486219,25994.0,25993.0,0.5347769]
[1693551496210,0.54140983,25994.0,25993.0,0.5347769]
[1693551497111,0.48486219,25994.0,25993.0,0.59132528]
[1693551501113,0.06906219,25994.0,25993.0,0.59132528]
[1693551503217,0.12560983,25994.0,25993.0,0.5347769]
[1693551503423,0.1802989,25994.0,25993.0,0.5347769]
[1693551503609,0.12560983,25994.0,25993.0,0.5347769]
[1693551504009,0.06906219,25994.0,25993.0,0.59132528]
[1693551504314,0.06906219,25994.0,25993.0,0.4759254]
[1693551505519,0.06906219,25994.0,25993.0,0.41937702]
[1693551505717,0.12560983,25994.0,25993.0,0.41937702]
[1693551506319,0.1802989,25994.0,25993.0,0.41937702]
[1693551506618,0.12560983,25994.0,25993.0,0.41937702]
[1693551509518,0.06906219,25994.0,25993.0,0.41937702]
[1693551510113,0.06906219,25994.0,25993.0,0.4759254]
[1693551513130,0.06521219,25994.0,25993.0,0.4759254]
[1693551513424,0.008,25994.0,25993.0,0.90441978]
[1693551513822,0.22237347,25998.0,25993.0,1.4852369]
[1693551514021,0.03072948,25998.0,25997.0,0.93795609]
[1693551514215,0.03072948,25998.0,25997.0,1.03300947]
[1693551514837,0.03072948,25998.0,25997.0,1.18330947]
[1693551515128,0.03472948,25998.0,25997.0,1.18330947]
[1693551515329,0.03672948,25998.0,25997.0,1.18830947]
[1693551515735,0.03472948,25998.0,25997.0,1.04844838]
[1693551515934,0.03472948,25998.0,25997.0,1.16388878]
[1693551516732,0.03472948,25998.0,25997.0,1.04844838]
[1693551517730,0.03472948,25998.0,25997.0,1.12533039]
[1693551519439,0.00457702,25998.0,25997.0,1.12533039]
[1693551523533,0.00457702,25998.0,25997.0,1.13059297]
[1693551523741,0.00457702,25998.0,25997.0,1.05371096]
[1693551537353,0.1602,26002.0,25997.0,1.13059297]
[1693551537650,0.1602,26002.0,26001.0,0.44953872]
[1693551537851,0.19164399,26004.0,26001.0,0.5060871]
[1693551538051,0.1588,26003.0,26001.0,0.03373872]
[1693551538251,0.1588,26003.0,26002.0,0.4158]
[1693551538450,0.1788,26003.0,26002.0,0.47234838]
[1693551538754,0.1788,26003.0,26002.0,0.47761096]
[1693551539255,0.1948,26003.0,26002.0,0.47761096]
[1693551540752,0.2308,26003.0,26002.0,0.47861096]
[1693551541552,0.2308,26003.0,26002.0,0.47961096]
[1693551541948,0.072,26003.0,26002.0,0.47961096]
[1693551574161,0.072,26003.0,26002.0,0.55649297]
[1693551575664,0.036,26003.0,26002.0,0.55549297]
[1693551575868,0.066,26003.0,26002.0,0.55649297]
[1693551576873,0.03,26003.0,26002.0,0.55549297]
[1693551577277,0.058,26003.0,26002.0,0.55649297]
[1693551581677,0.058,26003.0,26002.0,0.47961096]
[1693551582778,0.058,26003.0,26002.0,0.59505136]
[1693551597885,0.058,26003.0,26002.0,0.59497577]
[1693551601291,0.078,26003.0,26002.0,0.49997754]
[1693551601590,0.18923671,26003.0,26002.0,0.49997754]
[1693551601980,0.13454764,26003.0,26002.0,0.49997754]
[1693551602990,0.18923671,26003.0,26002.0,0.55652592]
[1693551603192,0.13454764,26003.0,26002.0,0.55652592]
[1693551603491,0.078,26003.0,26002.0,0.55652592]
[1693551604699,0.078,26003.0,26002.0,0.49997754]
[1693551605490,0.078,26003.0,26002.0,0.55652592]
[1693551608190,0.13454764,26003.0,26002.0,0.55652592]
[1693551608404,0.13454764,26003.0,26002.0,0.49997754]
[1693551610392,0.11454764,26003.0,26002.0,0.49997754]
[1693551610583,0.16923671,26003.0,26002.0,0.49997754]
[1693551610786,0.18923671,26003.0,26002.0,0.49997754]
[1693551610985,0.11454764,26003.0,26002.0,0.49998692]
[1693551611289,0.058,26003.0,26002.0,0.42306258]
[1693551611485,0.058,26003.0,26002.0,0.59497577]
[1693551612890,0.16923671,26003.0,26002.0,0.53842739]
[1693551613190,0.38093924,26003.0,26002.0,0.42306258]
[1693551619500,0.24970253,26003.0,26002.0,0.47961096]
[1693551620398,0.058,26003.0,26002.0,0.47961096]
[1693551620593,0.11454764,26003.0,26002.0,0.42306258]
[1693551621300,0.16923671,26003.0,26002.0,0.42306258]
[1693551621805,0.11454764,26003.0,26002.0,0.42306258]
[1693551622002,0.16923671,26003.0,26002.0,0.42306258]
[1693551622193,0.058,26003.0,26002.0,0.42306258]
[1693551624302,0.11454764,26003.0,26002.0,0.42306258]
[1693551625300,0.16923671,26003.0,26002.0,0.42306258]
[1693551625693,0.11454764,26003.0,26002.0,0.42306258]
[1693551625889,0.16923671,26003.0,26002.0,0.42306258]
[1693551626193,0.11454764,26003.0,26002.0,0.42306258]
[1693551627100,0.16923671,26003.0,26002.0,0.42306258]
[1693551627301,0.11454764,26003.0,26002.0,0.42306258]
[1693551630203,0.058,26003.0,26002.0,0.42306258]
[1693551631402,0.11454764,26003.0,26002.0,0.42306258]
[1693551633010,0.058,26003.0,26002.0,0.47961096]
[1693551634410,0.058,26003.0,26002.0,0.42306258]
[1693551637210,0.058,26003.0,26002.0,0.47961096]
[1693551637716,0.058,26003.0,26002.0,0.42306258]
[1693551638511,0.11454764,26003.0,26002.0,0.42306258]
[1693551639110,0.058,26003.0,26002.0,0.42306258]
[1693551639906,0.11454764,26003.0,26002.0,0.42306258]
[1693551640715,0.058,26003.0,26002.0,0.47961096]
[1693551643317,0.24959798,26003.0,26002.0,0.47961096]
[1693551647919,0.30614562,26003.0,26002.0,0.42306258]
[1693551649920,0.36083469,26003.0,26002.0,0.42306258]
[1693551656319,0.36096113,26003.0,26002.0,0.42306258]
[1693551658329,0.16923671,26003.0,26002.0,0.42306258]
[1693551663033,0.11454764,26003.0,26002.0,0.42306258]
[1693551663331,0.16923671,26003.0,26002.0,0.42306258]
[1693551680147,0.11454764,26003.0,26002.0,0.42306258]
[1693551680334,0.058,26003.0,26002.0,0.42306258]
[1693551680539,0.11454764,26003.0,26002.0,0.42306258]
[1693551680939,0.16923671,26003.0,26002.0,0.42306258]
[1693551682447,0.11454764,26003.0,26002.0,0.42306258]
[1693551683041,0.16923671,26003.0,26002.0,0.42306258]
[1693551684247,0.11454764,26003.0,26002.0,0.42306258]
[1693551684449,0.16923671,26003.0,26002.0,0.42306258]
[1693551685952,0.11454764,26003.0,26002.0,0.42306258]
[1693551686338,0.16923671,26003.0,26002.0,0.42306258]
[1693551686538,0.11454764,26003.0,26002.0,0.42306258]
[1693551687239,0.16923671,26003.0,26002.0,0.42306258]
[1693551687947,0.11454764,26003.0,26002.0,0.42306258]
[1693551688252,0.16923671,26003.0,26002.0,0.42306258]
[1693551690952,0.36100513,26003.0,26002.0,0.42306258]
[1693551693546,0.30631606,26003.0,26002.0,0.42306258]
[1693551693744,0.36100513,26003.0,26002.0,0.42306258]
[1693551694059,0.30631606,26003.0,26002.0,0.42306258]
[1693551694959,0.36100513,26003.0,26002.0,0.42306258]
[1693551696857,0.16923671,26003.0,26002.0,0.42306258]
[1693551697051,0.18923671,26003.0,26002.0,0.42306258]
[1693551699954,0.24616773,26003.0,26002.0,0.42306258]
[1693551705369,0.22616773,26003.0,26002.0,0.42306258]
[1693551738704,0.17147866,26003.0,26002.0,0.42306258]
[1693551738896,0.11493102,26003.0,26002.0,0.42306258]
[1693551740304,0.17147866,26003.0,26002.0,0.42306258]
[1693551740901,0.22616773,26003.0,26002.0,0.42306258]
[1693551745009,0.11493102,26003.0,26002.0,0.42306258]
[1693551745711,0.11493102,26003.0,26002.0,0.47961096]
[1693551746898,0.17147866,26003.0,26002.0,0.42306258]
[1693551747507,0.22616773,26003.0,26002.0,0.42306258]
[1693551747810,0.17147866,26003.0,26002.0,0.42306258]
[1693551748110,0.22616773,26003.0,26002.0,0.42306258]
[1693551748510,0.17147866,26003.0,26002.0,0.42306258]
[1693551751114,0.11493102,26003.0,26002.0,0.42306258]
[1693551753804,0.17147866,26003.0,26002.0,0.42306258]
[1693551755210,0.17147866,26003.0,26002.0,0.58956258]
[1693551755722,0.11493102,26003.0,26002.0,0.58956258]
[1693551755920,0.11493102,26003.0,26002.0,0.64611096]
[1693551757421,0.11493102,26003.0,26002.0,0.58956258]
[1693551757617,0.11493102,26003.0,26002.0,0.60956258]
[1693551757922,0.19180742,26005.0,26004.0,0.4158]
[1693551758115,0.29086273,26008.0,26004.0,0.8516]
[1693551758417,0.29086273,26008.0,26007.0,0.4158]
[1693551758610,0.06069382,26008.0,26007.0,0.4158]
[1693551758812,0.06069382,26008.0,26007.0,0.42106258]
[1693551759115,0.06069382,26008.0,26007.0,0.47761096]
[1693551759527,0.05684382,26008.0,26007.0,0.47761096]
[1693551759727,0.23016891,26010.0,26007.0,0.47761096]
[1693551760017,0.23016891,26010.0,26009.0,0.4158]
[1693551760408,0.23016891,26011.0,26009.0,0.5708]
[1693551760608,0.23016891,26011.0,26010.0,0.4158]
[1693551761008,0.23016891,26011.0,26010.0,0.42106258]
[1693551761223,0.30689188,26014.0,26010.0,0.42106258]
[1693551761224,0.23016891,26014.0,26012.0,0.4158]
[1693551761521,0.7907,26015.0,26013.0,0.4158]
[1693551761711,0.7907,26015.0,26014.0,1.52375915]
[1693551761914,0.7907,26015.0,26014.0,1.52902173]
[1693551762117,0.7907,26015.0,26014.0,1.58557011]
[1693551762720,0.82122557,26015.0,26014.0,1.58557011]
[1693551763124,0.03052557,26015.0,26014.0,1.60557011]
[1693551763322,0.0005766,26017.0,26014.0,1.60557011]
[1693551763625,0.0005766,26017.0,26016.0,0.4158]
[1693551764128,0.0005766,26017.0,26016.0,1.60556229]
[1693551764627,0.0585766,26017.0,26016.0,0.48161096]
[1693551766128,0.0585766,26017.0,26016.0,0.42506258]
[1693551766317,0.0225766,26017.0,26016.0,0.42106258]
[1693551766520,0.0365766,26017.0,26016.0,0.42506258]
[1693551766722,0.0715766,26017.0,26016.0,0.42806258]
[1693551767119,0.0715766,26017.0,26016.0,0.42106258]
[1693551767120,0.0005766,26017.0,26016.0,0.42106258]
[1693551767321,0.0725766,26017.0,26016.0,0.42906258]
[1693551767520,0.12912424,26017.0,26016.0,0.42906258]
[1693551767817,0.12912424,26017.0,26016.0,0.42806258]
[1693551767818,0.12812424,26017.0,26016.0,0.42806258]
[1693551768018,0.11512424,26017.0,26016.0,0.42606258]
[1693551768328,0.08012424,26017.0,26016.0,0.42306258]
[1693551768523,0.11612424,26017.0,26016.0,0.42706258]
[1693551769621,0.12912424,26017.0,26016.0,0.42906258]
[1693551770426,0.18281331,26017.0,26016.0,0.42806258]
[1693551770724,0.12812424,26017.0,26016.0,0.42806258]
[1693551771132,0.18281331,26017.0,26016.0,0.42806258]
[1693551771432,0.20281331,26017.0,26016.0,0.42806258]
[1693551772537,0.16681331,26017.0,26016.0,0.42406258]
[1693551772721,0.20281331,26017.0,26016.0,0.42806258]
[1693551773033,0.20381331,26017.0,26016.0,0.42906258]
[1693551773527,0.20381331,26017.0,26016.0,0.42506258]
[1693551773528,0.11312424,26017.0,26016.0,0.42506258]
[1693551773732,0.20381331,26017.0,26016.0,0.42906258]
[1693551777734,0.0925766,26017.0,26016.0,0.42906258]
[1693551778039,0.0725766,26017.0,26016.0,0.42906258]
[1693551779339,0.12912424,26017.0,26016.0,0.42906258]
[1693551780946,0.0725766,26017.0,26016.0,0.42906258]
[1693551781135,0.12912424,26017.0,26016.0,0.42906258]
[1693551782437,0.0725766,26017.0,26016.0,0.48561096]
[1693551783233,0.0725766,26017.0,26016.0,1.59341424]
[1693551790946,0.12912424,26017.0,26016.0,1.53686586]
[1693551793951,0.12912424,26017.0,26016.0,1.53692393]
[1693551794857,0.0725766,26017.0,26016.0,1.53692393]
[1693551795457,0.12912424,26017.0,26016.0,1.53692393]
[1693551798655,0.0725766,26017.0,26016.0,1.53692393]
[1693551799155,0.12912424,26017.0,26016.0,1.53692393]
[1693551805664,0.12912424,26017.0,26016.0,1.6133894]
[1693551806565,0.12912424,26017.0,26016.0,1.53692393]
[1693551808367,0.12912424,26017.0,26016.0,1.61380105]
[1693551811568,0.12912424,26017.0,26016.0,1.53692393]
[1693551811763,0.0725766,26017.0,26016.0,1.59347231]
[1693551811964,0.0725766,26017.0,26016.0,1.83024943]
[1693551812167,0.0725766,26017.0,26016.0,1.75337231]
[1693551812358,0.0725766,26017.0,26016.0,1.83024943]
[1693551812556,0.0725766,26017.0,26016.0,1.75337231]
[1693551813068,0.26344971,26017.0,26016.0,1.75337231]
[1693551815375,0.0725766,26017.0,26016.0,1.75337231]
[1693551818373,0.0725766,26017.0,26016.0,1.68025783]
[1693551818768,0.12912424,26017.0,26016.0,1.68025783]
[1693551821770,0.0725766,26017.0,26016.0,1.73680621]
[1693551823776,0.0725766,26017.0,26016.0,1.68025783]
[1693551824177,0.0725766,26017.0,26016.0,1.73680621]
[1693551825471,0.30162433,26017.0,26016.0,1.73680621]
[1693551825779,0.0725766,26017.0,26016.0,1.73680621]
[1693551826277,0.30162433,26017.0,26016.0,1.73680621]
[1693551826875,0.0725766,26017.0,26016.0,1.73680621]
[1693551827075,0.12912424,26017.0,26016.0,1.68025783]
[1693551827979,0.0725766,26017.0,26016.0,1.68025783]
[1693551829481,0.0725766,26017.0,26016.0,1.73680621]
[1693551838091,0.0725766,26017.0,26016.0,1.73674357]
[1693551846897,0.26453191,26017.0,26016.0,1.73674357]
[1693551848697,0.0725766,26017.0,26016.0,1.73674357]
[1693551849598,0.12912424,26017.0,26016.0,1.73674357]
[1693551850301,0.0725766,26017.0,26016.0,1.73674357]
[1693551850702,0.12912424,26017.0,26016.0,1.68019519]
[1693551852904,0.0725766,26017.0,26016.0,1.73674357]
[1693551858601,0.26453191,26017.0,26016.0,1.73674357]
[1693551861208,0.26453191,26017.0,26016.0,1.73670896]
[1693551866611,0.26453191,26017.0,26016.0,1.68016058]
[1693551867114,0.26453191,26017.0,26016.0,1.73670896]
[1693551867714,0.26453191,26017.0,26016.0,1.68016058]
[1693551868716,0.26453191,26017.0,26016.0,1.73670896]
[1693551869914,0.32107955,26017.0,26016.0,1.73670896]
[1693551870315,0.32107955,26017.0,26016.0,1.68016058]
[1693551870510,0.0725766,26017.0,26016.0,1.73670896]
[1693551872823,0.0725766,26017.0,26016.0,1.68016058]
[1693551874024,0.0725766,26017.0,26016.0,1.73670896]
[1693551895741,0.12912424,26017.0,26016.0,1.68016058]
[1693551895939,0.14912424,26017.0,26016.0,1.52026058]
[1693551896443,0.20381331,26017.0,26016.0,1.52026058]
[1693551896943,0.61961331,26017.0,26016.0,1.12102668]
[1693551898145,0.59961331,26017.0,26016.0,1.12102668]
[1693551899546,0.54492424,26017.0,26016.0,1.12102668]
[1693551900249,0.59961331,26017.0,26016.0,1.12102668]
[1693551909552,0.54492424,26017.0,26016.0,1.12102668]
[1693551912157,0.59961331,26017.0,26016.0,1.12102668]
[1693551912349,0.59961331,26017.0,26016.0,1.53682668]
[1693551912350,0.18381331,26017.0,26016.0,1.53682668]
[1693551912551,0.12912424,26017.0,26016.0,1.53682668]
[1693551914255,0.18381331,26017.0,26016.0,1.53682668]
[1693551914554,0.12912424,26017.0,26016.0,1.53682668]
[1693551915058,0.0725766,26017.0,26016.0,1.53682668]
[1693551915256,0.12912424,26017.0,26016.0,1.53682668]
[1693551918046,0.0725766,26017.0,26016.0,1.53682668]
[1693551919462,0.0725766,26017.0,26016.0,1.59337506]
[1693551922665,0.0725766,26017.0,26016.0,1.53682668]
[1693551924266,0.0725766,26017.0,26016.0,1.59337506]
[1693551924967,0.12912424,26017.0,26016.0,1.53682668]
[1693551926072,0.0725766,26017.0,26016.0,1.53682668]
[1693551926862,0.0725766,26017.0,26016.0,1.59337506]
[1693551928973,0.0725766,26017.0,26016.0,1.53682668]
[1693551931877,0.26465764,26017.0,26016.0,1.61374732]
[1693551934376,0.32120528,26017.0,26016.0,1.61374732]
[1693551936774,0.32120601,26017.0,26016.0,1.61373478]
[1693551937875,0.32120601,26017.0,26016.0,1.67028316]
[1693551938076,0.26465837,26017.0,26016.0,1.67028316]
[1693551944382,0.32120601,26017.0,26016.0,1.61373478]
[1693551946173,0.26465837,26017.0,26016.0,1.61373478]
[1693551946479,0.26465837,26017.0,26016.0,1.53682668]
[1693551946881,0.26465837,26017.0,26016.0,1.59337506]
[1693551947387,0.26466173,26017.0,26016.0,1.59337506]
[1693551948076,0.26466173,26017.0,26016.0,1.74497506]
[1693551948284,0.26466173,26017.0,26016.0,1.68842668]
[1693551951485,0.32120937,26017.0,26016.0,1.68842668]
[1693551954586,0.32120937,26017.0,26016.0,1.76532594]
[1693551969889,0.32120937,26017.0,26016.0,1.76530282]
[1693551973891,0.26466173,26017.0,26016.0,1.76530282]
[1693551975195,0.26466173,26017.0,26016.0,1.8218512]
[1693551977195,0.26466173,26017.0,26016.0,1.76530282]
[1693551977596,0.32120937,26017.0,26016.0,1.76530282]
[1693551979697,0.26466173,26017.0,26016.0,1.76530282]
[1693551980496,0.26466173,26017.0,26016.0,1.8218512]
[1693551990603,0.26466173,26017.0,26016.0,1.76530282]
[1693551990807,0.26466173,26017.0,26016.0,1.8218512]
[1693551995809,0.26466173,26017.0,26016.0,1.76530282]
[1693552000809,0.26466173,26017.0,26016.0,1.8218512]
[1693552003303,0.32120937,26017.0,26016.0,1.76530282]
[1693552004206,0.12912424,26017.0,26016.0,1.53680356]
[1693552004405,0.56492424,26017.0,26016.0,1.01820172]
[1693552004614,0.56492424,26017.0,26016.0,0.82307064]
[1693552004822,0.61961331,26017.0,26014.0,0.07689926]
[1693552005008,0.60778809,26015.0,26014.0,0.07689926]
[1693552005407,0.62778809,26015.0,26013.0,0.49269926]
[1693552005606,0.11507671,26014.0,26013.0,0.49269926]
[1693552005910,0.11507671,26014.0,26013.0,0.4158]
[1693552006714,0.06038764,26014.0,26013.0,0.4158]
[1693552007109,0.07038764,26014.0,26013.0,0.4168]
[1693552007309,0.12507671,26014.0,26013.0,0.49368611]
[1693552007512,0.07038764,26014.0,26013.0,0.49368611]
[1693552008016,0.07038764,26014.0,26013.0,0.49468611]
[1693552008017,0.08138764,26014.0,26013.0,0.49468611]
[1693552008516,0.13607671,26014.0,26013.0,0.49468611]
[1693552008716,0.08138764,26014.0,26013.0,0.49468611]
[1693552011310,0.13607671,26014.0,26013.0,0.49468611]
[1693552011509,0.08138764,26014.0,26013.0,0.49468611]
[1693552011716,0.13607671,26014.0,26013.0,0.49468611]
[1693552018622,0.08138764,26014.0,26013.0,0.49468611]
[1693552019724,0.13607671,26014.0,26013.0,0.49468611]
[1693552025925,0.08138764,26014.0,26013.0,0.49468611]
[1693552027524,0.13607671,26014.0,26013.0,0.49468611]
[1693552027925,0.08138764,26014.0,26013.0,0.49468611]
[1693552028119,0.02484,26014.0,26013.0,0.49468611]
[1693552028331,0.021,26014.0,26013.0,0.49468611]
[1693552028631,0.021,26014.0,26013.0,0.55123449]
[1693552029624,0.021,26014.0,26013.0,0.71433449]
[1693552029825,0.07754764,26014.0,26013.0,0.71433449]
[1693552030026,0.13223671,26014.0,26013.0,0.65778611]
[1693552030228,0.07754764,26014.0,26013.0,0.65778611]
[1693552030627,0.13223671,26014.0,26013.0,0.65778611]
[1693552031123,0.07754764,26014.0,26013.0,0.65778611]
[1693552031325,0.13223671,26014.0,26013.0,0.65778611]
[1693552031528,0.07754764,26014.0,26013.0,0.65778611]
[1693552032634,0.13223671,26014.0,26013.0,0.65778611]
[1693552032836,0.07754764,26014.0,26013.0,0.65778611]
[1693552033827,0.021,26014.0,26013.0,0.65778611]
[1693552034234,0.021,26014.0,26013.0,0.5809]
[1693552034425,0.07568907,26014.0,26013.0,0.5809]
[1693552034928,0.021,26014.0,26013.0,0.5809]
[1693552036432,0.07568907,26014.0,26013.0,0.5809]
[1693552037034,0.13223671,26014.0,26013.0,0.5809]
[1693552037329,0.13223671,26014.0,26013.0,0.65774581]
[1693552041842,0.13607671,26014.0,26013.0,0.65774581]
[1693552043943,0.08138764,26014.0,26013.0,0.65774581]
[1693552044239,0.08138764,26014.0,26013.0,0.65777058]
[1693552044437,0.13607671,26014.0,26013.0,0.65777058]
[1693552046847,0.13607671,26014.0,26013.0,0.5809]
[1693552048149,0.13607671,26014.0,26013.0,0.69620587]
[1693552056952,0.55187671,26014.0,26013.0,0.28040587]
[1693552062357,0.55187671,26014.0,26013.0,0.69620587]
[1693552062951,0.54803671,26014.0,26013.0,0.69620587]
[1693552064657,0.49334764,26014.0,26013.0,0.69620587]
[1693552065157,0.49718764,26014.0,26013.0,0.49471793]
[1693552065458,0.55187671,26014.0,26013.0,0.49471793]
[1693552066961,0.55187671,26014.0,26013.0,0.07891793]
[1693552085686,0.54187671,26014.0,26013.0,0.07791793]
[1693552085988,0.56287671,26014.0,26013.0,0.07991793]
[1693552086179,0.57387671,26014.0,26013.0,0.08191793]
[1693552086677,0.57003671,26014.0,26013.0,0.08191793]
[1693552087183,0.57003671,26014.0,26013.0,0.49771793]
[1693552089485,0.76189814,26014.0,26013.0,0.49771793]
[1693552089689,0.57003671,26014.0,26013.0,0.49771793]
[1693552092785,0.76189814,26014.0,26013.0,0.65761793]
[1693552093087,0.57003671,26014.0,26013.0,0.65761793]
[1693552093493,0.76189814,26014.0,26013.0,0.65761793]
[1693552093789,0.57003671,26014.0,26013.0,0.65761793]
[1693552094192,0.76189814,26014.0,26013.0,0.65761793]
[1693552095291,0.57003671,26014.0,26013.0,0.65761793]
[1693552095591,0.76189814,26014.0,26013.0,0.65761793]
[1693552099097,0.57003671,26014.0,26013.0,0.65761793]
[1693552099595,0.76189814,26014.0,26013.0,0.65761793]
[1693552101397,0.57003671,26014.0,26013.0,0.65761793]
[1693552101587,0.76189814,26014.0,26013.0,0.65761793]
[1693552102197,0.57003671,26014.0,26013.0,0.65761793]
[1693552102493,0.76189814,26014.0,26013.0,0.65761793]
[1693552104291,0.57003671,26014.0,26013.0,0.65761793]
[1693552105591,0.76189814,26014.0,26013.0,0.65761793]
[1693552133215,0.76189814,26014.0,26013.0,0.24181793]
[1693552136924,0.76189814,26014.0,26013.0,0.65761793]
[1693552140320,0.76573814,26014.0,26013.0,0.18455957]
[1693552140520,0.00384,26013.0,26010.0,0.56957662]
[1693552140819,0.52703671,26012.0,26011.0,0.1552]
[1693552141026,0.52703671,26012.0,26010.0,0.56957662]
[1693552141230,0.30319551,26011.0,26010.0,0.72477662]
[1693552141529,0.30319388,26011.0,26010.0,0.72477662]
[1693552141729,0.30319388,26011.0,26010.0,0.73077662]
[1693552142529,0.33519388,26011.0,26010.0,0.72577662]
[1693552143029,0.36619388,26011.0,26010.0,0.72677662]
[1693552144833,0.17423671,26011.0,26010.0,0.72677662]
[1693552146939,0.59003671,26011.0,26010.0,0.31097662]
[1693552154646,0.64671897,26011.0,26010.0,0.31097662]
[1693552155147,0.67704801,26011.0,26010.0,0.31097662]
[1693552169165,0.67704801,26011.0,26010.0,0.00257662]
[1693552169664,0.69704801,26011.0,26010.0,0.15627662]
[1693552169966,0.67704801,26011.0,26010.0,0.15627662]
[1693552176974,0.67704801,26011.0,26010.0,0.57207662]
[1693552178167,1.27704801,26011.0,26010.0,0.56948494]
[1693552180473,1.46900518,26011.0,26010.0,0.56948494]
[1693552184888,1.27704801,26011.0,26010.0,0.56948494]
[1693552186973,1.27704801,26011.0,26010.0,0.15368494]
[1693552205003,1.27704801,26011.0,26010.0,0.56948494]
[1693552206904,1.27704801,26011.0,26010.0,0.15368494]
[1693552211316,1.22235894,26011.0,26010.0,0.15368494]
[1693552212210,1.41423565,26011.0,26010.0,0.15368494]
[1693552212515,1.46892472,26011.0,26010.0,0.15368494]
[1693552214810,1.41423565,26011.0,26010.0,0.15368494]
[1693552215217,1.35768801,26011.0,26010.0,0.15368494]
[1693552215513,1.35768801,26011.0,26010.0,0.17368494]
[1693552215718,1.1658113,26011.0,26010.0,0.21023332]
[1693552216617,1.10912904,26011.0,26010.0,0.21023332]
[1693552216818,0.88522069,26011.0,26010.0,0.64603332]
[1693552217019,0.09332904,26011.0,26010.0,0.76139784]
[1693552217219,0.19189165,26014.0,26010.0,0.64603332]
[1693552217524,0.19189165,26015.0,26013.0,0.4158]
[1693552217718,0.19189165,26015.0,26014.0,0.4158]
[1693552217927,0.19246825,26017.0,26014.0,0.65794838]
[1693552218220,0.19246825,26017.0,26016.0,0.4158]
[1693552218422,0.19246825,26017.0,26016.0,0.4358]
[1693552218613,0.19246825,26017.0,26016.0,0.49234838]
[1693552219820,0.0365766,26017.0,26016.0,0.49634838]
[1693552220019,0.0725766,26017.0,26016.0,0.50034838]
[1693552220717,0.0615766,26017.0,26016.0,0.49934838]
[1693552221628,0.0505766,26017.0,26016.0,0.49834838]
[1693552221925,0.08067116,26017.0,26016.0,0.49834838]
[1693552234240,0.08067116,26017.0,26016.0,0.47834838]
[1693552254752,0.08067116,26017.0,26016.0,0.4218]
[1693552255160,0.1372188,26017.0,26016.0,0.4218]
[1693552256958,0.08067116,26017.0,26016.0,0.4218]
[1693552257158,0.08067116,26017.0,26016.0,0.47834838]
[1693552262269,0.08067116,26017.0,26016.0,0.55513283]
[1693552265871,0.27256281,26017.0,26016.0,0.55513283]
[1693552268370,0.08067116,26017.0,26016.0,0.59370186]
[1693552270073,0.08067116,26017.0,26016.0,0.47834838]
[1693552270264,0.08067116,26017.0,26016.0,0.59370186]
[1693552270870,0.08067116,26017.0,26016.0,0.47834838]
[1693552271874,0.08067116,26017.0,26016.0,0.5552451]
[1693552274476,0.08067116,26017.0,26016.0,0.49834838]
[1693552274868,0.08067116,26017.0,26016.0,0.57523782]
[1693552275268,0.08067116,26017.0,26016.0,0.61370186]
[1693552277377,0.08067116,26017.0,26016.0,0.49834838]
[1693552278471,0.08067116,26017.0,26016.0,0.61370186]
[1693552279279,0.19573165,26020.0,26016.0,0.49834838]
[1693552279470,0.19573165,26020.0,26019.0,0.4158]
[1693552279976,0.19573165,26020.0,26019.0,0.574]
[1693552280276,0.19573165,26020.0,26019.0,0.63054838]
[1693552280277,0.00384,26020.0,26019.0,0.63054838]
[1693552280473,0.02284,26020.0,26019.0,0.63054838]
[1693552280975,0.019,26020.0,26019.0,0.63054838]
[1693552281780,0.038,26020.0,26019.0,0.63054838]
[1693552282273,0.056,26020.0,26019.0,0.63354838]
[1693552282480,0.074,26020.0,26019.0,0.63654838]
[1693552282669,0.074,26020.0,26019.0,0.22074838]
[1693552282874,0.074,26020.0,26019.0,0.63654838]
[1693552284065,0.1046783,26020.0,26019.0,0.63654838]
[1693552288280,0.1085183,26020.0,26019.0,0.58]
[1693552288581,0.1285183,26020.0,26019.0,0.4218]
[1693552288775,0.18320737,26020.0,26019.0,0.4218]
[1693552288971,0.23975501,26020.0,26019.0,0.4218]
[1693552289168,0.18506594,26020.0,26019.0,0.4218]
[1693552293186,0.16506594,26020.0,26019.0,0.4218]
[1693552297588,0.21975501,26020.0,26019.0,0.4218]
[1693552297783,0.16506594,26020.0,26019.0,0.4218]
[1693552298385,0.21975501,26020.0,26019.0,0.4218]
[1693552299589,0.16506594,26020.0,26019.0,0.4218]
[1693552300693,0.21975501,26020.0,26019.0,0.4218]
[1693552301092,0.16506594,26020.0,26019.0,0.4218]
[1693552301590,0.21975501,26020.0,26019.0,0.4218]
[1693552301792,0.16506594,26020.0,26019.0,0.4218]
[1693552305694,0.21975501,26020.0,26019.0,0.4218]
[1693552305993,0.16506594,26020.0,26019.0,0.4218]
[1693552306294,0.21975501,26020.0,26019.0,0.4218]
[1693552307694,0.16506594,26020.0,26019.0,0.4218]
[1693552308194,0.1085183,26020.0,26019.0,0.4218]
[1693552308494,0.1085183,26020.0,26019.0,0.47834838]
[1693552311897,0.1046783,26020.0,26019.0,0.47834838]
[1693552313700,0.29656995,26020.0,26019.0,0.47834838]
[1693552314600,0.1046783,26020.0,26019.0,0.47834838]
[1693552314800,0.29656995,26020.0,26019.0,0.47834838]
[1693552315499,0.1046783,26020.0,26019.0,0.47834838]
[1693552315901,0.29656995,26020.0,26019.0,0.47834838]
[1693552316204,0.1046783,26020.0,26019.0,0.47834838]
[1693552320412,0.1046783,26020.0,26019.0,0.55521625]
[1693552335729,0.1046783,26020.0,26019.0,0.59365019]
[1693552337832,0.1046783,26020.0,26019.0,0.47834838]
[1693552338131,0.1046783,26020.0,26019.0,0.59365019]
[1693552338327,0.16122594,26020.0,26019.0,0.4218]
[1693552339833,0.16122594,26020.0,26019.0,0.49866228]
[1693552340136,0.16122594,26020.0,26019.0,0.4218]
[1693552340432,0.16122594,26020.0,26019.0,0.49865974]
[1693552341330,0.1046783,26020.0,26019.0,0.49865974]
[1693552342333,0.1046783,26020.0,26019.0,0.55520812]
[1693552352143,0.1046783,26020.0,26019.0,0.55519762]
[1693552352338,0.1046783,26020.0,26019.0,0.49864924]
[1693552353038,0.16506594,26020.0,26019.0,0.49864924]
[1693552353346,0.16122594,26020.0,26019.0,0.49864924]
[1693552353737,0.16122594,26020.0,26019.0,0.4218]
[1693552355651,0.16506594,26020.0,26019.0,0.4218]